[Event "Nordic Chess-ch 2019"]
[Site "Sarpsborg"]
[Date "2019.06.21"]
[Round "1.3"]
[White "Chatalbashev, Boris"]
[Black "Hamre, Kenneth"]
[Result "1-0"]
[ECO "D36"]
[WhiteElo "2527"]
[BlackElo "2033"]
[Annotator "RC"]
[PlyCount "111"]
[EventDate "2019.06.21"]
[EventType "swiss"]
[EventCountry "NOR"]
[SourceTitle "playchess.com"]
[Source "ChessBase"]
[SourceQuality "1"]
[TimeControl "40/5400+30:1800+30"]

1. d4 {[%emt 0:00:00]} d5 {[%emt 0:00:00]} 2. c4 {[%emt 0:00:00]} e6 {[%emt 0:00:00]} 3. Nc3 {[%emt 0:00:00]} Nf6 {[%emt 0:00:01]} 4. cxd5 {[%emt 0:00:00]} exd5 {[%emt 0:00:09]} 5. Bg5 {[%emt 0:00:00]} Be7 {[%emt 0:00:39]} 6. e3 {[%emt 0:00:03]} c6 {[%emt 0:01:28]} 7. Bd3 {[%emt 0:00:09]} Nbd7 {[%emt 0:01:31]} 8. Qc2 {[%emt 0:00:29]} h6 {[%emt 0:00:26]} 9. Bh4 {[%emt 0:03:51]} O-O {[%emt 0:08:27]} 10. Nge2 {[%emt 0:03:28]} Re8 {[%emt 0:06:35]} 11. f3 {[%emt 0:00:29]} c5 {[%emt 0:03:17]} 12. O-O {[%emt 0:00:57]} a6 {[%emt 0:07:26]} 13. a4 {[%emt 0:02:17]} b6 {[%emt 0:06:31]} 14. Rad1 {[%emt 0:01:58]} Bb7 {[%emt 0:07:30]} 15. Kh1 {[%emt 0:01:59]} Qc7 {[%emt 0:02:30]} 16. Bf2 {[%emt 0:06:44]} Nf8 {[%emt 0:03:59]} 17. Ng3 {[%emt 0:00:40]} cxd4 {[%emt 0:06:47]} 18. exd4 {[%emt 0:00:07]} Ne6 {[%emt 0:00:12]} 19. Nf5 {[%emt 0:00:24]} Bf8 {[%emt 0:00:08]} 20. Bg3 {[%emt 0:03:08]} Qd8 {[%emt 0:03:50]} 21. Qd2 {[%emt 0:10:09]} Nh5 {[%emt 0:11:25]} 22. Bh4 {[%emt 0:00:27]} Qc7 {[%emt 0:00:55]} 23. Ne2 {[%emt 0:00:55]} Nef4 {[%emt 0:06:19]} 24. Rc1 {[%emt 0:01:38]} Qb8 {[%emt 0:00:32]} 25. Nxf4 {[%emt 0:04:08]} Qxf4 {[%emt 0:00:04]} 26. Qf2 {[%emt 0:01:11]} g6 {[%emt 0:07:55]} 27. g4 {[%emt 0:02:33]} gxf5 {[%emt 0:05:34]} 28. gxh5 {[%emt 0:00:12]} Be7 {[%emt 0:05:12]} 29. Bg3 {[%emt 0:08:43]} Qg5 {[%emt 0:00:03]} 30. Rg1 {[%emt 0:00:25]} Kf8 {[%emt 0:01:38]} 31. Be5 {[%emt 0:02:38]} Qxh5 {[%emt 0:00:27]} 32. Rc7 {[%emt 0:03:06]} Bc8 {[%emt 0:02:39]} 33. Qg3 {[%emt 0:08:39]} Qg5 {[%emt 0:00:32]} 34. Qh3 {[%emt 0:00:22]} f4 {[%emt 0:00:28]} 35. Rxc8 {[%emt 0:00:42]} Raxc8 {[%emt 0:00:31]} 36. Rxg5 {[%emt 0:00:07]} Bxg5 {[%emt 0:00:17]} 37. Qf5 {[%emt 0:00:45]} Rc1+ {[%emt 0:01:50]} 38. Kg2 {[%emt 0:00:13]} Re6 {[%emt 0:00:39]} 39. Bxf4 {[%emt 0:04:23]} Bxf4 {[%emt 0:00:03]} 40. Qxf4 {[%emt 0:00:08]} Ra1 {[%emt 0:00:57]} 41. Bf5 {[%emt 0:42:29]} Rf6 {[%emt 0:05:25]} 42. Qe5 {[%emt 0:00:00]} Kg7 {[%emt 0:00:05]} 43. b3 {[%emt 0:00:00]} Ra2+ {[%emt 0:00:18]} 44. Kg3 {[%emt 0:00:00]} Ra1 {[%emt 0:00:06]} 45. Qxd5 {[%emt 0:00:00]} Rg1+ {[%emt 0:00:10]} 46. Kf4 {[%emt 0:00:00]} Rg5 {[%emt 0:02:49]} 47. h4 {[%emt 0:00:00]} Rg2 {[%emt 0:00:56]} 48. Ke3 {[%emt 0:00:00]} a5 {[%emt 0:00:11]} 49. Kd3 {[%emt 0:00:00]} Rg1 {[%emt 0:02:18]} 50. Qe5 {[%emt 0:00:00]} Rc1 {[%emt 0:03:28]} 51. d5 {[%emt 0:00:00]} Rc5 {[%emt 0:01:58]} 52. Kd4 {[%emt 0:00:00]} h5 {[%emt 0:01:10]} 53. Ke4 {[%emt 0:00:00]} Rc1 {[%emt 0:01:16]} 54. Kf4 {[%emt 0:00:00]} Rg1 {[%emt 0:03:09]} 55. Qd4 {[%emt 0:00:00]} Rh1 {[%emt 0:00:42]} 56. Kg5 {[%emt 0:00:00]} 1-0

[Event "Nordic Chess-ch 2019"]
[Site "Sarpsborg"]
[Date "2019.06.21"]
[Round "1.7"]
[White "Gretarsson, Helgi Ass"]
[Black "Stellas, Dimitrios"]
[Result "1-0"]
[ECO "D11"]
[WhiteElo "2433"]
[BlackElo "1976"]
[Annotator "RC"]
[PlyCount "89"]
[EventDate "2019.06.21"]
[EventType "swiss"]
[EventCountry "NOR"]
[SourceTitle "playchess.com"]
[Source "ChessBase"]
[SourceQuality "1"]
[TimeControl "40/5400+30:1800+30"]

1. d4 {[%emt 0:00:00]} d5 {[%emt 0:00:03]} 2. Nf3 {[%emt 0:00:00]} Nf6 {[%emt 0:01:16]} 3. g3 {[%emt 0:00:16]} Bf5 {[%emt 0:03:23]} 4. Bg2 {[%emt 0:00:07]} e6 {[%emt 0:01:00]} 5. O-O {[%emt 0:00:06]} h6 {[%emt 0:00:48]} 6. c4 {[%emt 0:00:33]} c6 {[%emt 0:03:31]} 7. Nc3 {[%emt 0:01:06]} Nbd7 {[%emt 0:00:47]} 8. Qb3 {[%emt 0:08:13]} Qb6 {[%emt 0:03:36]} 9. c5 {[%emt 0:00:09]} Qc7 {[%emt 0:14:55]} 10. Bf4 {[%emt 0:28:17]} Qc8 {[%emt 0:00:30]} 11. Rac1 {[%emt 0:00:03]} Be7 {[%emt 0:02:57]} 12. h3 {[%emt 0:02:03]} Ne4 {[%emt 0:06:07]} 13. Nd2 {[%emt 0:12:39]} Nxd2 {[%emt 0:02:44]} 14. Bxd2 {[%emt 0:00:01]} O-O {[%emt 0:07:30]} 15. e4 {[%emt 0:09:23]} Bh7 {[%emt 0:01:43]} 16. Rfe1 {[%emt 0:00:58]} Bf6 {[%emt 0:04:25]} 17. Be3 {[%emt 0:05:56]} Re8 {[%emt 0:07:16]} 18. Qd1 {[%emt 0:05:10]} Nf8 {[%emt 0:12:25]} 19. b4 {[%emt 0:01:16]} a6 {[%emt 0:00:18]} 20. h4 {[%emt 0:05:40]} Qd7 {[%emt 0:05:01]} 21. e5 {[%emt 0:03:06]} Bd8 {[%emt 0:00:35]} 22. h5 {[%emt 0:02:56]} f6 {[%emt 0:01:55]} 23. Bf4 {[%emt 0:00:56]} Qf7 {[%emt 0:01:28]} 24. exf6 {[%emt 0:08:01]} Bxf6 {[%emt 0:00:21]} 25. Be5 {[%emt 0:00:04]} Nd7 {[%emt 0:01:42]} 26. f4 {[%emt 0:00:01]} Bxe5 {[%emt 0:01:54]} 27. dxe5 {[%emt 0:00:22]} a5 {[%emt 0:01:40]} 28. a3 {[%emt 0:00:05]} axb4 {[%emt 0:00:08]} 29. axb4 {[%emt 0:00:00]} Ra3 {[%emt 0:04:00]} 30. Bf3 {[%emt 0:04:11]} Kh8 {[%emt 0:01:43]} 31. Qd4 {[%emt 0:00:53]} Nf8 {[%emt 0:01:38]} 32. Ra1 {[%emt 0:02:20]} Rea8 {[%emt 0:00:17]} 33. Rxa3 {[%emt 0:00:32]} Rxa3 {[%emt 0:00:02]} 34. Kf2 {[%emt 0:00:17]} Qf5 {[%emt 0:01:18]} 35. Rc1 {[%emt 0:00:44]} Rb3 {[%emt 0:02:27]} 36. Ke3 {[%emt 0:00:38]} Ra3 {[%emt 0:01:52]} 37. g4 {[%emt 0:00:29]} Qf7 {[%emt 0:01:19]} 38. b5 {[%emt 0:00:22]} cxb5 {[%emt 0:02:13]} 39. Qb4 {[%emt 0:00:55]} Ra6 {[%emt 0:01:24]} 40. Nxb5 {[%emt 0:00:16]} Rc6 {[%emt 0:01:14]} 41. Nd6 {[%emt 0:06:11]} Qc7 {[%emt 0:02:36]} 42. Qxb7 {[%emt 0:00:27]} d4+ {[%emt 0:07:30]} 43. Kf2 {[%emt 0:00:54]} Qa5 {[%emt 0:00:14]} 44. Ne8 {[%emt 0:00:13]} Qd2+ {[%emt 0:01:56]} 45. Kg3 {[%emt 0:00:05]} 1-0

[Event "Nordic Chess-ch 2019"]
[Site "Sarpsborg"]
[Date "2019.06.21"]
[Round "1.9"]
[White "Lindgren, Philip"]
[Black "Schouten, Mathias Lind"]
[Result "1-0"]
[ECO "A57"]
[WhiteElo "2384"]
[BlackElo "1967"]
[Annotator "RC"]
[PlyCount "45"]
[EventDate "2019.06.21"]
[EventType "swiss"]
[EventCountry "NOR"]
[SourceTitle "playchess.com"]
[Source "ChessBase"]
[SourceQuality "1"]
[TimeControl "40/5400+30:1800+30"]

1. d4 {[%emt 0:00:00]} Nf6 {[%emt 0:00:00]} 2. c4 {[%emt 0:00:00]} c5 {[%emt 0:00:00]} 3. d5 {[%emt 0:01:17]} b5 {[%emt 0:00:00]} 4. a4 {[%emt 0:04:29]} b4 {[%emt 0:00:59]} 5. Nd2 {[%emt 0:02:56]} d6 {[%emt 0:02:20]} 6. e4 {[%emt 0:01:57]} g6 {[%emt 0:02:37]} 7. Bd3 {[%emt 0:04:00]} Bg7 {[%emt 0:00:44]} 8. f4 {[%emt 0:03:56]} Bg4 {[%emt 0:08:41]} 9. Ngf3 {[%emt 0:07:20]} Nh5 {[%emt 0:07:12]} 10. Nf1 {[%emt 0:09:19]} Qc8 {[%emt 0:22:17]} 11. h3 {[%emt 0:02:16]} Bxf3 {[%emt 0:01:26]} 12. Qxf3 {[%emt 0:00:16]} O-O {[%emt 0:00:40]} 13. g4 {[%emt 0:06:21]} Nf6 {[%emt 0:00:09]} 14. Ng3 {[%emt 0:00:28]} e5 {[%emt 0:13:04]} 15. f5 {[%emt 0:05:32]} Ne8 {[%emt 0:01:43]} 16. h4 {[%emt 0:02:45]} Qd7 {[%emt 0:15:17]} 17. b3 {[%emt 0:07:18]} Na6 {[%emt 0:01:14]} 18. Ra2 {[%emt 0:01:01]} h6 {[%emt 0:06:42]} 19. g5 {[%emt 0:06:48]} Kh7 {[%emt 0:04:24]} 20. f6 {[%emt 0:03:04]} Bh8 {[%emt 0:01:32]} 21. h5 {[%emt 0:00:59]} Rg8 {[%emt 0:00:20]} 22. hxg6+ {[%emt 0:03:27]} Rxg6 {[%emt 0:00:09]} 23. Rah2 {[%emt 0:02:58]} 1-0

[Event "Nordic Chess-ch 2019"]
[Site "Sarpsborg"]
[Date "2019.06.21"]
[Round "1.10"]
[White "Tenold, Andreas"]
[Black "Getz, Nicolai"]
[Result "0-1"]
[ECO "A42"]
[WhiteElo "1959"]
[BlackElo "2380"]
[Annotator "RC"]
[PlyCount "120"]
[EventDate "2019.06.21"]
[EventType "swiss"]
[EventCountry "NOR"]
[SourceTitle "playchess.com"]
[Source "ChessBase"]
[SourceQuality "1"]
[TimeControl "40/5400+30:1800+30"]

1. d4 {[%emt 0:00:00]} d6 {[%emt 0:00:00]} 2. c4 {[%emt 0:00:00]} g6 {[%emt 0:02:34]} 3. Nc3 {[%emt 0:01:34]} Bg7 {[%emt 0:00:07]} 4. e4 {[%emt 0:02:00]} Nc6 {[%emt 0:04:55]} 5. Be3 {[%emt 0:04:06]} e5 {[%emt 0:00:26]} 6. d5 {[%emt 0:07:13]} Nce7 {[%emt 0:05:24]} 7. f3 {[%emt 0:03:02]} f5 {[%emt 0:02:07]} 8. Bd3 {[%emt 0:02:14]} Nf6 {[%emt 0:03:46]} 9. Qd2 {[%emt 0:07:02]} O-O {[%emt 0:01:58]} 10. h3 {[%emt 0:07:43]} f4 {[%emt 0:00:53]} 11. Bf2 {[%emt 0:01:19]} c5 {[%emt 0:00:39]} 12. O-O-O {[%emt 0:04:23]} a6 {[%emt 0:02:05]} 13. b3 {[%emt 0:05:23]} Bd7 {[%emt 0:00:35]} 14. Kb2 {[%emt 0:03:40]} Qb8 {[%emt 0:04:15]} 15. a4 {[%emt 0:02:10]} b6 {[%emt 0:04:09]} 16. Nge2 {[%emt 0:06:10]} Ne8 {[%emt 0:02:03]} 17. Ra1 {[%emt 0:05:34]} Nc7 {[%emt 0:01:16]} 18. Rhb1 {[%emt 0:03:33]} a5 {[%emt 0:10:01]} 19. Rh1 {[%emt 0:04:12]} g5 {[%emt 0:08:36]} 20. Nc1 {[%emt 0:07:09]} Ng6 {[%emt 0:01:06]} 21. Be2 {[%emt 0:01:36]} Ne8 {[%emt 0:00:17]} 22. Nd3 {[%emt 0:01:23]} Nf6 {[%emt 0:00:40]} 23. Rag1 {[%emt 0:04:16]} h6 {[%emt 0:01:52]} 24. Be1 {[%emt 0:01:53]} Kf7 {[%emt 0:02:08]} 25. Nf2 {[%emt 0:02:50]} Rh8 {[%emt 0:00:47]} 26. Ng4 {[%emt 0:02:30]} h5 {[%emt 0:04:41]} 27. Nxf6 {[%emt 0:00:42]} Bxf6 {[%emt 0:00:02]} 28. Qd1 {[%emt 0:01:38]} Qb7 {[%emt 0:04:04]} 29. Bd2 {[%emt 0:01:08]} Rag8 {[%emt 0:00:17]} 30. Qf1 {[%emt 0:02:33]} Qc8 {[%emt 0:07:51]} 31. Nd1 {[%emt 0:02:03]} Rg7 {[%emt 0:01:10]} 32. Nf2 {[%emt 0:00:38]} Rh6 {[%emt 0:00:21]} 33. Qd1 {[%emt 0:00:21]} Qd8 {[%emt 0:00:21]} 34. Bc1 {[%emt 0:01:05]} Ne7 {[%emt 0:01:08]} 35. Bd2 {[%emt 0:00:45]} Rhg6 {[%emt 0:01:19]} 36. g4 {[%emt 0:02:55]} fxg3 {[%emt 0:00:09]} 37. Rxg3 {[%emt 0:00:06]} Ng8 {[%emt 0:02:08]} 38. Rhg1 {[%emt 0:01:26]} Nh6 {[%emt 0:02:43]} 39. Qc1 {[%emt 0:00:43]} Kg8 {[%emt 0:05:40]} 40. R3g2 {[%emt 0:00:27]} Kh7 {[%emt 0:01:37]} 41. Ka2 {[%emt 0:07:29]} Nf7 {[%emt 0:02:56]} 42. Qd1 {[%emt 0:06:21]} Nh8 {[%emt 0:01:32]} 43. Nh1 {[%emt 0:03:40]} Rh6 {[%emt 0:04:55]} 44. Qc1 {[%emt 0:02:36]} Bxh3 {[%emt 0:02:26]} 45. Bxg5 {[%emt 0:03:00]} Bxg2 {[%emt 0:10:03]} 46. Bxh6 {[%emt 0:00:39]} Rg6 {[%emt 0:00:15]} 47. Be3 {[%emt 0:00:56]} Qe7 {[%emt 0:06:05]} 48. Nf2 {[%emt 0:02:09]} Bh4 {[%emt 0:02:36]} 49. Nd3 {[%emt 0:02:07]} Nf7 {[%emt 0:00:43]} 50. Ne1 {[%emt 0:01:15]} Bxe1 {[%emt 0:04:05]} 51. Qxe1 {[%emt 0:00:12]} h4 {[%emt 0:00:11]} 52. Bf2 {[%emt 0:04:15]} h3 {[%emt 0:00:13]} 53. Bg3 {[%emt 0:00:16]} Qg5 {[%emt 0:01:13]} 54. Bh2 {[%emt 0:00:23]} Qe3 {[%emt 0:00:32]} 55. Bd1 {[%emt 0:01:53]} Qxe1 {[%emt 0:00:27]} 56. Rxe1 {[%emt 0:00:02]} Rf6 {[%emt 0:00:13]} 57. Re3 {[%emt 0:01:08]} Ng5 {[%emt 0:00:13]} 58. Kb2 {[%emt 0:00:34]} Bxf3 {[%emt 0:00:47]} 59. Bxf3 {[%emt 0:00:23]} Nxf3 {[%emt 0:01:34]} 60. Re2 {[%emt 0:00:38]} Rg6 {[%emt 0:00:05]} 0-1

[Event "Nordic Chess-ch 2019"]
[Site "Sarpsborg"]
[Date "2019.06.21"]
[Round "1.14"]
[White "Jashari, Driton"]
[Black "Ernst, Thomas"]
[Result "0-1"]
[ECO "B30"]
[WhiteElo "1755"]
[BlackElo "2342"]
[Annotator "RC"]
[PlyCount "107"]
[EventDate "2019.06.21"]
[EventType "swiss"]
[EventCountry "NOR"]
[SourceTitle "playchess.com"]
[Source "ChessBase"]
[SourceQuality "1"]
[TimeControl "40/5400+30:1800+30"]

1. e4 {[%emt 0:00:49]} c5 {[%emt 0:00:00]} 2. Nf3 {[%emt 0:00:09]} d6 {[%emt 0:00:00]} 3. Nc3 {[%emt 0:00:37]} Nf6 {[%emt 0:00:37]} 4. d3 {[%emt 0:00:47]} Nc6 {[%emt 0:01:39]} 5. Be2 {[%emt 0:04:10]} e6 {[%emt 0:01:38]} 6. Bg5 {[%emt 0:02:19]} Be7 {[%emt 0:00:32]} 7. h3 {[%emt 0:00:52]} d5 {[%emt 0:07:03]} 8. exd5 {[%emt 0:16:19]} Nxd5 {[%emt 0:00:30]} 9. Bxe7 {[%emt 0:05:18]} Ndxe7 {[%emt 0:00:44]} 10. Ne4 {[%emt 0:01:09]} b6 {[%emt 0:03:25]} 11. c3 {[%emt 0:05:28]} O-O {[%emt 0:01:10]} 12. Qc2 {[%emt 0:00:23]} e5 {[%emt 0:07:08]} 13. Rd1 {[%emt 0:02:50]} h6 {[%emt 0:01:30]} 14. Rd2 {[%emt 0:03:35]} Ng6 {[%emt 0:04:06]} 15. O-O {[%emt 0:03:04]} Nf4 {[%emt 0:00:43]} 16. Rfd1 {[%emt 0:00:08]} Nxe2+ {[%emt 0:01:28]} 17. Rxe2 {[%emt 0:00:01]} Be6 {[%emt 0:03:00]} 18. b3 {[%emt 0:02:41]} Rc8 {[%emt 0:03:07]} 19. Ng3 {[%emt 0:00:18]} Qd5 {[%emt 0:03:00]} 20. Nf1 {[%emt 0:00:38]} Rfd8 {[%emt 0:07:35]} 21. Ne3 {[%emt 0:00:38]} Qd7 {[%emt 0:00:18]} 22. Red2 {[%emt 0:00:07]} Qe7 {[%emt 0:06:52]} 23. Nc4 {[%emt 0:03:16]} Qf6 {[%emt 0:04:50]} 24. Nh2 {[%emt 0:04:14]} Qg6 {[%emt 0:08:28]} 25. Kh1 {[%emt 0:06:42]} Rd5 {[%emt 0:04:26]} 26. Ne3 {[%emt 0:00:25]} Rd7 {[%emt 0:00:19]} 27. Qb2 {[%emt 0:02:49]} Rcd8 {[%emt 0:01:10]} 28. Qc2 {[%emt 0:03:19]} Qh5 {[%emt 0:03:53]} 29. f3 {[%emt 0:02:33]} Qg5 {[%emt 0:02:38]} 30. Neg4 {[%emt 0:00:21]} Bf5 {[%emt 0:01:12]} 31. Nf2 {[%emt 0:00:13]} Bh7 {[%emt 0:00:34]} 32. Ne4 {[%emt 0:01:14]} Qf4 {[%emt 0:04:02]} 33. g3 {[%emt 0:08:20]} Qf5 {[%emt 0:00:14]} 34. Kg2 {[%emt 0:00:09]} Qe6 {[%emt 0:01:41]} 35. Ng4 {[%emt 0:00:05]} f5 {[%emt 0:03:05]} 36. Ngf2 {[%emt 0:02:56]} fxe4 {[%emt 0:00:11]} 37. fxe4 {[%emt 0:00:31]} Rf7 {[%emt 0:00:43]} 38. Ng4 {[%emt 0:00:44]} Rdf8 {[%emt 0:01:03]} 39. Ne3 {[%emt 0:00:32]} Rf3 {[%emt 0:01:16]} 40. Rf1 {[%emt 0:03:10]} Qf7 {[%emt 0:01:31]} 41. Rdf2 {[%emt 0:30:17]} Rxf2+ {[%emt 0:30:17]} 42. Rxf2 {[%emt 0:00:03]} Qxf2+ {[%emt 0:00:14]} 43. Qxf2 {[%emt 0:00:06]} Rxf2+ {[%emt 0:00:06]} 44. Kxf2 {[%emt 0:00:06]} Kf7 {[%emt 0:00:15]} 45. Kf3 {[%emt 0:00:22]} Ke6 {[%emt 0:00:27]} 46. Nd5 {[%emt 0:00:38]} Kd6 {[%emt 0:01:25]} 47. Ne3 {[%emt 0:00:07]} b5 {[%emt 0:01:34]} 48. Nd5 {[%emt 0:03:17]} Bg8 {[%emt 0:00:32]} 49. Ne3 {[%emt 0:00:02]} Be6 {[%emt 0:00:13]} 50. Nc2 {[%emt 0:00:17]} b4 {[%emt 0:01:04]} 51. c4 {[%emt 0:00:08]} Bxh3 {[%emt 0:01:28]} 52. g4 {[%emt 0:00:03]} Nd4+ {[%emt 0:00:22]} 53. Nxd4 {[%emt 0:00:02]} exd4 {[%emt 0:00:10]} 54. Kf4 {[%emt 0:00:11]} 0-1

[Event "Nordic Chess-ch 2019"]
[Site "Sarpsborg"]
[Date "2019.06.21"]
[Round "1.25"]
[White "Ptacnikova, Lenka"]
[Black "Skaar, Ben Samuel Groth"]
[Result "1-0"]
[ECO "A36"]
[WhiteElo "2145"]
[BlackElo "1362"]
[Annotator "RC"]
[PlyCount "59"]
[EventDate "2019.06.21"]
[EventType "swiss"]
[EventCountry "NOR"]
[SourceTitle "playchess.com"]
[Source "ChessBase"]
[SourceQuality "1"]
[TimeControl "40/5400+30:1800+30"]

1. c4 {[%emt 0:00:00]} c5 {[%emt 0:00:00]} 2. g3 {[%emt 0:00:00]} g6 {[%emt 0:00:00]} 3. Bg2 {[%emt 0:00:00]} Bg7 {[%emt 0:00:02]} 4. Nc3 {[%emt 0:00:00]} Nf6 {[%emt 0:00:17]} 5. Nh3 {[%emt 0:00:15]} Nc6 {[%emt 0:00:15]} 6. Nf4 {[%emt 0:00:07]} e6 {[%emt 0:01:01]} 7. h4 {[%emt 0:00:45]} h5 {[%emt 0:01:37]} 8. d3 {[%emt 0:00:18]} b6 {[%emt 0:01:51]} 9. Bd2 {[%emt 0:00:28]} Bb7 {[%emt 0:00:11]} 10. a3 {[%emt 0:00:25]} Qc7 {[%emt 0:01:26]} 11. b4 {[%emt 0:06:24]} cxb4 {[%emt 0:02:31]} 12. axb4 {[%emt 0:01:24]} Nd4 {[%emt 0:00:15]} 13. e4 {[%emt 0:03:05]} O-O {[%emt 0:03:41]} 14. O-O {[%emt 0:00:20]} Rfd8 {[%emt 0:01:35]} 15. Re1 {[%emt 0:02:39]} e5 {[%emt 0:01:52]} 16. Nfe2 {[%emt 0:02:31]} Ne6 {[%emt 0:03:15]} 17. Ra2 {[%emt 0:08:51]} a5 {[%emt 0:01:43]} 18. Nb5 {[%emt 0:00:44]} Qb8 {[%emt 0:02:57]} 19. bxa5 {[%emt 0:01:39]} Bc6 {[%emt 0:01:36]} 20. Qb1 {[%emt 0:04:30]} Bxb5 {[%emt 0:06:10]} 21. cxb5 {[%emt 0:04:58]} bxa5 {[%emt 0:02:21]} 22. Rxa5 {[%emt 0:00:57]} Rxa5 {[%emt 0:00:11]} 23. Bxa5 {[%emt 0:00:04]} Rc8 {[%emt 0:00:19]} 24. b6 {[%emt 0:05:24]} Nd8 {[%emt 0:02:10]} 25. Qb5 {[%emt 0:04:58]} Nb7 {[%emt 0:03:47]} 26. Bb4 {[%emt 0:04:50]} d6 {[%emt 0:06:16]} 27. Nc3 {[%emt 0:08:38]} Bh6 {[%emt 0:03:41]} 28. Rd1 {[%emt 0:11:21]} Nc5 {[%emt 0:02:50]} 29. Bh3 {[%emt 0:06:12]} Ng4 {[%emt 0:02:03]} 30. Nd5 {[%emt 0:00:28]} 1-0

[Event "Nordic Chess-ch 2019"]
[Site "Sarpsborg"]
[Date "2019.06.21"]
[Round "1.30"]
[White "Nizar, Siako"]
[Black "Wahlund, Max"]
[Result "0-1"]
[ECO "A21"]
[WhiteElo "1209"]
[BlackElo "2103"]
[Annotator "RC"]
[PlyCount "52"]
[EventDate "2019.06.21"]
[EventType "swiss"]
[EventCountry "NOR"]
[SourceTitle "playchess.com"]
[Source "ChessBase"]
[SourceQuality "1"]
[TimeControl "40/5400+30:1800+30"]

1. c4 {[%emt 0:00:00]} e5 {[%emt 0:00:00]} 2. Nc3 {[%emt 0:00:00]} Bb4 {[%emt 0:00:00]} 3. g3 {[%emt 0:00:14]} Bxc3 {[%emt 0:00:41]} 4. dxc3 {[%emt 0:00:08]} Nc6 {[%emt 0:02:04]} 5. Bg2 {[%emt 0:01:41]} d6 {[%emt 0:00:18]} 6. f4 {[%emt 0:02:10]} Nf6 {[%emt 0:01:13]} 7. fxe5 {[%emt 0:02:24]} dxe5 {[%emt 0:05:27]} 8. Qxd8+ {[%emt 0:00:31]} Nxd8 {[%emt 0:01:06]} 9. e4 {[%emt 0:07:14]} O-O {[%emt 0:04:14]} 10. Bg5 {[%emt 0:02:34]} Ng4 {[%emt 0:04:20]} 11. Nh3 {[%emt 0:04:23]} Ne6 {[%emt 0:01:20]} 12. Bd2 {[%emt 0:00:37]} Rd8 {[%emt 0:05:05]} 13. b4 {[%emt 0:01:20]} b6 {[%emt 0:01:07]} 14. Rd1 {[%emt 0:01:46]} Ba6 {[%emt 0:00:51]} 15. b5 {[%emt 0:02:54]} Bb7 {[%emt 0:00:05]} 16. O-O {[%emt 0:02:36]} Nc5 {[%emt 0:06:15]} 17. Nf2 {[%emt 0:16:31]} Nxf2 {[%emt 0:00:49]} 18. Rxf2 {[%emt 0:00:04]} Bxe4 {[%emt 0:01:39]} 19. Rdf1 {[%emt 0:00:41]} Bxg2 {[%emt 0:00:43]} 20. Kxg2 {[%emt 0:00:06]} Ne4 {[%emt 0:00:26]} 21. Be3 {[%emt 0:04:41]} Nxf2 {[%emt 0:00:08]} 22. Bxf2 {[%emt 0:00:02]} Rd2 {[%emt 0:00:27]} 23. Re1 {[%emt 0:01:02]} f6 {[%emt 0:00:06]} 24. Kg1 {[%emt 0:00:31]} Rad8 {[%emt 0:00:14]} 25. c5 {[%emt 0:00:35]} Rd1 {[%emt 0:01:13]} 26. cxb6 {[%emt 0:00:11]} axb6 {[%emt 0:00:19]} 0-1

[Event "Nordic Chess-ch 2019"]
[Site "Sarpsborg"]
[Date "2019.06.21"]
[Round "1.36"]
[White "Hauge, Tor Arne"]
[Black "Larsen, Bjorn H."]
[Result "1-0"]
[ECO "A01"]
[WhiteElo "2022"]
[BlackElo "2005"]
[Annotator "NA RC"]
[PlyCount "73"]
[EventDate "2019.06.21"]
[EventType "swiss"]
[EventCountry "NOR"]
[SourceTitle "playchess.com"]
[Source "ChessBase"]
[SourceQuality "1"]
[TimeControl "40/5400+30:1800+30"]

1. b3 {[%emt 0:00:00]} e5 {[%emt 0:00:00]} 2. Bb2 {[%emt 0:00:00]} Nc6 {[%emt 0:00:22]} 3. c4 {[%emt 0:01:11]} Bc5 {[%emt 0:02:11]} 4. Nc3 {[%emt 0:11:44]} a6 {[%emt 0:05:03]} 5. g3 {[%emt 0:02:51]} f5 {[%emt 0:06:00]} 6. Bg2 {[%emt 0:12:58]} d6 {[%emt 0:02:31]} 7. e3 {[%emt 0:04:32]} Nf6 {[%emt 0:03:35]} 8. Nge2 {[%emt 0:08:00]} O-O {[%emt 0:02:48]} 9. O-O {[%emt 0:02:17]} Ba7 {[%emt 0:03:01]} 10. d4 {[%emt 0:10:44]} exd4 {[%emt 0:00:00]} 11. exd4 {[%emt 0:01:28]} Re8 {[%emt 0:06:06]} 12. d5 {[%emt 0:08:11]} Ne5 {[%emt 0:03:34]} 13. Nf4 {[%emt 0:01:03]} Qe7 {[%emt 0:04:47]} 14. Qd2 {[%emt 0:02:41]} Qf7 {[%emt 0:01:05]} 15. Rae1 {[%emt 0:07:42]} Bd7 {[%emt 0:01:21]} 16. h3 {[%emt 0:03:31]} Re7 {[%emt 0:06:10]} 17. Kh2 {[%emt 0:06:53]} Rae8 {[%emt 0:00:24]} 18. f3 {[%emt 0:00:49]} Nh5 {[%emt 0:09:31]} 19. Nce2 {[%emt 0:02:13]} Nxf4 {[%emt 0:04:07]} 20. Nxf4 {[%emt 0:00:18]} h6 {[%emt 0:09:59]} 21. Ne6 {[%emt 0:04:43]} Bxe6 {[%emt 0:02:00]} 22. dxe6 {[%emt 0:00:09]} Qf8 {[%emt 0:05:45]} 23. f4 {[%emt 0:00:45]} Nc6 {[%emt 0:00:49]} 24. g4 {[%emt 0:01:07]} Bb6 {[%emt 0:05:06]} 25. Bc3 {[%emt 0:01:32]} a5 {[%emt 0:02:50]} 26. gxf5 {[%emt 0:00:36]} Qxf5 {[%emt 0:00:49]} 27. Be4 {[%emt 0:00:38]} Qh5 {[%emt 0:03:14]} 28. Qg2 {[%emt 0:00:56]} Kh8 {[%emt 0:02:25]} 29. Bg6 {[%emt 0:00:18]} Qh4 {[%emt 0:04:59]} 30. Bxe8 {[%emt 0:00:15]} Nd4 {[%emt 0:00:53]} 31. Bf7 {[%emt 0:00:27]} Nf5 {[%emt 0:00:32]} 32. Qg4 {[%emt 0:01:54]} Qxg4 {[%emt 0:00:52]} 33. hxg4 {[%emt 0:00:04]} Ne3 {[%emt 0:00:21]} 34. Rxe3 {[%emt 0:01:05]} Bxe3 {[%emt 0:00:11]} 35. Kg3 {[%emt 0:00:12]} c6 {[%emt 0:01:31]} 36. Rh1 {[%emt 0:00:06]} Kh7 {[%emt 0:00:21]} 37. g5 {[%emt 0:00:09]} 1-0